fUST/lending_fUST_20250228
["ID","MTS","AMOUNT","RATE_DAILY","PERIOD"]
[354813648,1740713451677,-500.0,0.00057975,120]
[354813649,1740713451691,-500.0,0.00057975,120]
[354813650,1740713451707,-500.0,0.00057975,120]
[354813651,1740713451721,-500.0,0.00057975,120]
[354813652,1740713451736,-500.0,0.00057975,120]
[354813653,1740713451751,-501.8878676,0.00057975,120]
[354813654,1740713451765,-500.0,0.00057975,120]
[354813655,1740713451780,-500.0,0.00057975,10]
[354813656,1740713451794,-500.0,0.00057975,120]
[354813657,1740713451809,-500.0,0.00057975,120]
[354813658,1740713451822,-500.9293862,0.00057975,120]
[354813659,1740713451836,-500.0,0.00057975,120]
[354813660,1740713451850,-500.0,0.00057975,120]
[354813661,1740713451864,-500.0,0.00057975,120]
[354813662,1740713451877,-501.13971128,0.00057975,120]
[354813663,1740713451891,-502.09482769,0.00057975,120]
[354813664,1740713451905,-416.02370593,0.00057975,120]
[354813665,1740713451919,-500.0,0.00057975,120]
[354813666,1740713451932,-500.0,0.00057975,120]
[354813667,1740713451947,-337.27559753,0.00057975,120]
[354813668,1740713451961,-500.0,0.00057975,120]
[354813669,1740713451976,-500.0,0.00057975,120]
[354813670,1740713451990,-500.0,0.00057975,120]
[354813671,1740713452003,-500.0,0.00057975,120]
[354813672,1740713452018,-448.70103678,0.00057975,120]
[354813673,1740713452034,-500.0,0.00057975,120]
[354813674,1740713452048,-500.0,0.00057975,120]
[354813675,1740713452062,-500.0,0.00057975,120]
[354813676,1740713452076,-500.0,0.00057975,120]
[354813677,1740713452088,-500.0,0.00057975,120]
[354813678,1740713452097,-500.0,0.00057975,120]
[354813679,1740713452204,-500.0,0.00057975,120]
[354813680,1740713452216,-500.0,0.00057975,120]
[354813681,1740713452225,-500.0,0.00057975,120]
[354813682,1740713452235,-500.0,0.00057975,120]
[354813683,1740713452244,-500.0,0.00057975,120]
[354813684,1740713452254,-500.0,0.00057975,120]
[354813685,1740713452264,-500.0,0.00057975,120]
[354813686,1740713452274,-500.0,0.00057975,120]
[354813687,1740713452283,-500.0,0.00057975,120]
[354813688,1740713452292,-500.0,0.00057975,120]
[354813689,1740713452301,-500.0,0.00057975,120]
[354813690,1740713452311,-500.0,0.00057975,120]
[354813691,1740713452321,-500.0,0.00057975,120]
[354813692,1740713452331,-500.0,0.00057975,120]
[354813693,1740713452341,-500.0,0.00057975,120]
[354813694,1740713452350,-500.0,0.00057975,120]
[354813695,1740713452359,-500.0,0.00057975,120]
[354813696,1740713452368,-500.0,0.00057975,120]
[354813697,1740713452378,-500.0,0.00057975,120]
[354813698,1740713452387,-500.0,0.00057975,120]
[354813699,1740713452396,-536.46,0.00057975,120]
[354813700,1740713452405,-500.0,0.00057975,120]
[354813701,1740713452415,-502.03066443,0.00057975,120]
[354813702,1740713452424,-504.46098639,0.00057975,120]
[354813703,1740713452434,-500.0,0.00057975,120]
[354813704,1740713452443,-500.0,0.00057975,120]
[354813705,1740713452452,-500.0,0.00057975,120]
[354813706,1740713452467,-500.0,0.00057975,120]
[354813707,1740713452476,-680.49,0.00057975,120]
[354813708,1740713452485,-500.0,0.00057975,120]
[354813709,1740713452495,-500.0,0.00057975,120]
[354813710,1740713452505,-508.18512307,0.00057975,120]
[354813711,1740713452514,-339.58938156,0.00057975,120]
[354813712,1740713452524,-500.0,0.00057975,120]
[354813713,1740713452533,-500.0,0.00057975,120]
[354813714,1740713452543,-500.0,0.00057975,120]
[354813715,1740713452552,-500.0,0.00057975,120]
[354813716,1740713452562,-500.0,0.00057975,120]
[354813717,1740713452573,-503.13919486,0.00057975,120]
[354813718,1740713452582,-593.1765646,0.00057975,120]
[354813719,1740713452592,-500.0,0.00057975,120]
[354813720,1740713452601,-500.0,0.00057975,120]
[354813721,1740713452610,-550.81,0.00057975,120]
[354813722,1740713452619,-502.84022555,0.00057975,120]
[354813723,1740713452629,-500.0,0.00057975,2]
[354813724,1740713452638,-500.0,0.00057975,120]
[354813725,1740713452647,-500.0,0.00057975,120]
[354813726,1740713452656,-159.28346521,0.00057975,120]
[354813727,1740713452666,-444.47196432,0.00057975,120]
[354813728,1740713452675,-500.0,0.00057975,120]
[354813729,1740713452684,-501.95440407,0.00057975,120]
[354813730,1740713452693,-500.0,0.00057975,120]
[354813731,1740713452703,-500.0,0.00057975,120]
[354813732,1740713452716,-503.81013274,0.00057975,120]
[354813733,1740713452725,-500.0,0.00057975,120]
[354813734,1740713452735,-501.95645873,0.00057975,120]
[354813735,1740713452744,-500.0,0.00057975,120]
[354813736,1740713452754,-500.0,0.00057975,120]
[354813737,1740713452763,-500.0,0.00057975,120]
[354813738,1740713452773,-232.07127179,0.00057975,120]
[354813739,1740713452783,-500.0,0.00057975,120]
[354813740,1740713452793,-500.0,0.00057975,120]
[354813741,1740713452803,-500.0,0.00057975,120]
[354813742,1740713452812,-500.0,0.00057975,120]
[354813743,1740713452822,-500.0,0.00057975,120]
[354813744,1740713452831,-378.79242353,0.00057975,120]
[354813745,1740713452840,-500.0,0.00057975,120]
[354813746,1740713452850,-500.0,0.00057975,120]
[354813747,1740713452859,-500.0,0.00057975,120]
[354813748,1740713452868,-500.0,0.00057975,120]
[354813749,1740713452878,-502.6882004,0.00057975,120]
[354813750,1740713452887,-500.0,0.00057975,120]
[354813751,1740713452896,-503.05719842,0.00057975,120]
[354813752,1740713452905,-500.0,0.00057975,120]
[354813753,1740713452914,-500.0,0.00057975,120]
[354813754,1740713452923,-502.28073673,0.00057975,120]
[354813755,1740713452933,-502.64020774,0.00057975,120]
[354813756,1740713452942,-500.0,0.00057975,120]
[354813757,1740713452951,-500.0,0.00057975,120]
[354813758,1740713452964,-501.67150804,0.00057975,120]
[354813759,1740713452974,-500.0,0.00057975,120]
[354813760,1740713452983,-500.0,0.00057975,30]
[354813761,1740713452992,-500.0,0.00057975,120]
[354813762,1740713453001,-500.60061559,0.00057975,120]
[354813763,1740713453010,-500.0,0.00057975,120]
[354813764,1740713453020,-500.0,0.00057975,120]
[354813765,1740713453030,-502.38467613,0.00057975,120]
[354813766,1740713453039,-500.0,0.00057975,120]
[354813767,1740713453048,-500.0,0.00057975,120]
[354813768,1740713453058,-500.0,0.00057975,120]
[354813769,1740713453067,-500.0,0.00057975,120]
[354813770,1740713453076,-500.0,0.00057975,120]
[354813771,1740713453086,-500.0,0.00057975,120]
[354813772,1740713453095,-500.0,0.00057975,120]
[354813773,1740713453104,-500.0,0.00057975,120]
[354813774,1740713453114,-500.0,0.00057975,120]
[354813775,1740713453123,-500.0,0.00057975,120]
[354813776,1740713453132,-500.0,0.00057975,120]
[354813777,1740713453142,-502.95116336,0.00057975,120]
[354813778,1740713453151,-500.0,0.00057975,120]
[354813779,1740713453160,-500.0,0.00057975,120]
[354813780,1740713453170,-502.42875603,0.00057975,120]
[354813781,1740713453179,-500.0,0.00057975,120]
[354813782,1740713453188,-500.0,0.00057975,120]
[354813783,1740713453197,-500.0,0.00057975,120]
[354813784,1740713453208,-525.67568755,0.00057975,120]
[354813785,1740713453217,-500.0,0.00057975,120]
[354813786,1740713453226,-500.0,0.00057975,120]
[354813787,1740713453236,-500.0,0.00057975,120]
[354813788,1740713453246,-500.0,0.00057975,120]
[354813789,1740713453255,-500.0,0.00057975,120]
[354813790,1740713453264,-500.0,0.00057975,120]
[354813791,1740713453273,-500.0,0.00057975,120]
[354813792,1740713453282,-1000.0,0.00057975,120]
[354813793,1740713453291,-300.0,0.00057975,120]
[354813794,1740713453300,-500.0,0.00057975,120]
[354813795,1740713453309,-500.0,0.00057975,120]
[354813796,1740713453319,-502.82266205,0.00057975,120]
[354813797,1740713453327,-500.0,0.00057975,120]
[354813798,1740713453337,-500.0,0.00057975,120]
[354813799,1740713453346,-500.0,0.00057975,120]
[354813800,1740713453356,-521.7323474,0.00057975,120]
[354813801,1740713453365,-502.35776363,0.00057975,120]
[354813802,1740713453376,-500.0,0.00057975,120]
[354813803,1740713453387,-500.0,0.00057975,120]
[354813804,1740713453396,-500.0,0.00057975,120]
[354813805,1740713453405,-500.0,0.00057975,120]
[354813806,1740713453414,-500.0,0.00057975,14]
[354813807,1740713453423,-502.21183224,0.00057975,120]
[354813808,1740713453432,-500.0,0.00057975,120]
[354813809,1740713453442,-500.0,0.00057975,120]
[354813810,1740713453451,-500.0,0.00057975,120]
[354813811,1740713453464,-500.0,0.00057975,120]
[354813812,1740713453474,-500.0,0.00057975,120]
[354813813,1740713453483,-500.0,0.00057975,120]
[354813814,1740713453492,-500.0,0.00057975,120]
[354813815,1740713453503,-500.0,0.00057975,120]
[354813816,1740713453512,-500.0,0.00057975,120]
[354813817,1740713453522,-500.0,0.00057975,120]
[354813818,1740713453531,-500.0,0.00057975,120]
[354813819,1740713453540,-500.0,0.00057975,120]
[354813820,1740713453550,-502.41219092,0.00057975,120]
[354813821,1740713453559,-500.0,0.00057975,120]
[354813822,1740713453569,-502.58208682,0.00057975,120]
[354813823,1740713453578,-500.0,0.00057975,120]
[354813824,1740713453587,-500.0,0.00057975,120]
[354813825,1740713453596,-500.0,0.00057975,120]
[354813826,1740713453606,-500.0,0.00057975,120]
[354813827,1740713453616,-500.0,0.00057975,120]
[354813828,1740713453626,-500.0,0.00057975,120]
[354813829,1740713453635,-500.0,0.00057975,120]
[354813830,1740713453645,-500.0,0.00057975,120]
[354813831,1740713453654,-500.0,0.00057975,120]
[354813832,1740713453663,-500.0,0.00057975,120]
[354813833,1740713453672,-500.0,0.00057976,120]
[354813834,1740713453681,-390.95335646,0.00057976,120]
[354813835,1740713453690,-561.9,0.00057976,120]
[354813836,1740713453700,-500.0,0.00057976,120]
[354813837,1740713453780,-500.0,0.00057976,120]
[354813838,1740713453800,-500.0,0.00057976,120]
[354813839,1740713453810,-500.0,0.00057976,120]
[354813840,1740713453819,-500.0,0.00057976,120]
[354813841,1740713453828,-500.0,0.00057976,120]
[354813842,1740713453837,-500.0,0.00057976,120]
[354813843,1740713453847,-500.0,0.00057976,120]
[354813844,1740713453856,-500.0,0.00057976,120]
[354813845,1740713453866,-500.0,0.00057976,120]
[354813846,1740713453877,-500.0,0.00057976,120]
[354813847,1740713453887,-500.0,0.00057976,120]
[354813848,1740713453896,-500.0,0.00057976,120]
[354813849,1740713453905,-1495.55,0.00057976,120]
[354813850,1740713453914,-1219.33,0.00057976,120]
[354813851,1740713453924,-500.0,0.00057976,120]
[354813852,1740713453933,-1046.36,0.00057976,120]
[354813853,1740713453943,-500.0,0.00057976,120]
[354813854,1740713453952,-500.0,0.00057976,120]
[354813855,1740713453964,-500.0,0.00057976,120]
[354813856,1740713453974,-500.0,0.00057976,120]
[354813857,1740713453983,-500.0,0.00057976,120]
[354813858,1740713453993,-809.83,0.00057976,120]
[354813859,1740713454003,-500.0,0.00057976,120]
[354813860,1740713454012,-500.0,0.00057976,120]
[354813861,1740713454022,-500.0,0.00057976,120]
[354813862,1740713454031,-1358.93,0.00057976,120]
[354813863,1740713454042,-500.0,0.00057976,120]
[354813864,1740713454051,-500.0,0.00057976,120]
[354813865,1740713454061,-500.0,0.00057976,120]
[354813866,1740713454070,-500.0,0.00057976,120]
[354813867,1740713454079,-500.0,0.00057976,120]
[354813868,1740713454089,-500.0,0.00057976,120]
[354813869,1740713454098,-500.0,0.00057976,120]
[354813870,1740713454108,-500.0,0.00057976,2]
[354813871,1740713454118,-500.0,0.00057976,120]
[354813872,1740713454127,-500.0,0.00057976,120]
[354813873,1740713454136,-500.0,0.00057976,120]
[354813874,1740713454145,-500.0,0.00057976,120]
[354813875,1740713454155,-502.97022679,0.00057976,120]
[354813876,1740713454163,-500.0,0.00057976,120]
[354813877,1740713454173,-500.0,0.00057976,120]
[354813878,1740713454183,-500.0,0.00057976,120]
[354813879,1740713454192,-500.0,0.00057976,120]
[354813880,1740713454202,-500.0,0.00057976,120]
[354813881,1740713454214,-2156.77,0.00057976,15]
[354813882,1740713454224,-500.0,0.00057976,120]
[354813883,1740713454233,-500.0,0.00057976,120]
[354813884,1740713454242,-500.0,0.00057976,120]
[354813885,1740713454252,-501.70713642,0.00057976,120]
[354813886,1740713454261,-500.0,0.00057976,120]
[354813887,1740713454271,-500.0,0.00057976,120]
[354813888,1740713454280,-534.42,0.00057976,120]
[354813889,1740713454290,-555.63,0.00057976,120]
[354813890,1740713454299,-1000.0,0.00057976,120]
[354813891,1740713454308,-500.0,0.00057976,120]
[354813892,1740713454318,-500.0,0.00057976,120]
[354813893,1740713454327,-553.28,0.00057976,120]
[354813894,1740713454336,-500.0,0.00057976,120]
[354813895,1740713454346,-500.0,0.00057976,120]
[354813896,1740713454355,-500.0,0.00057976,120]
[354813897,1740713454364,-500.0,0.00057976,120]
[354813898,1740713454373,-501.89386369,0.00057976,120]
[354813899,1740713454382,-925.44,0.00057976,120]
[354813900,1740713454391,-500.0,0.00057976,120]
[354813901,1740713454400,-500.0,0.00057976,120]
[354813902,1740713454409,-151.0,0.00058,24]
[354813903,1740713454418,-151.0,0.000581,30]
[354813904,1740713454427,-183.863,0.00058405,115]
[354813905,1740713454436,-151.0,0.000585,30]
[354813906,1740713454445,-250.0,0.00058521,15]
[354813907,1740713454457,-350.76147241,0.00058521,2]
[354813908,1740713454468,-151.0,0.000586,26]
[354813909,1740713454477,-1000.0,0.000588,120]
[354813910,1740713454486,-140348.70977737,0.00058863,30]
[354813911,1740713454496,-2410.30656268,0.00058863,30]
[354813912,1740713454507,-420.52,0.000589,30]
[354813913,1740713454516,-158.88,0.000589,30]
[354813914,1740713454526,-331.28,0.000589,30]
[354813915,1740713454535,-2378.54,0.000589,30]
[354813916,1740713454545,-7787.30473697,0.000589,2]
[354813917,1740713454555,-366561.02683041,0.00059,30]
[354813918,1740713454564,-1929.8,0.00059,30]
[354813919,1740713454574,-8547.0,0.00059,120]
[354813920,1740713454584,-5000.0,0.00059,120]
[354813921,1740713454593,-5000.0,0.00059,120]
[354813922,1740713454604,-5000.0,0.00059,120]
[354813923,1740713454613,-5000.0,0.00059,120]
[354813924,1740713454622,-5000.0,0.00059,120]
[354813925,1740713454632,-5000.0,0.00059,120]
[354813926,1740713454641,-5000.0,0.00059,120]
[354813927,1740713454651,-1551.917642,0.00059,120]
[354813928,1740713454661,-350.0,0.00059068,15]
[354813929,1740713454670,-151.0,0.000591,29]
[354813930,1740713454680,-151.0,0.000596,27]
[354813931,1740713454689,-450.0,0.00059616,15]
[354813932,1740713454699,-150.0,0.00059973,15]
[354813933,1740713454712,-45603.9334168,0.0006,60]
[354813934,1740713454721,-9484.54327972,0.0006,120]
[354813935,1740713454731,-73000.0,0.0006,120]
[354813936,1740713454740,-157.7715,0.00060158,120]
[354813937,1740713454750,-187.100244,0.00060164,15]
[354813938,1740713454761,-151.0,0.000602,28]
[354813939,1740713454772,-500.0,0.0006024,120]
[354813940,1740713454783,-500.63633836,0.00060273,120]
[354813941,1740713454793,-250.39569943,0.00060521,15]
[354813942,1740713454804,-2456.89,0.00060617,120]
[354813943,1740713454813,-500.0,0.00060652,15]
[354813944,1740713454822,-501.86282152,0.00060652,15]
[354813945,1740713454831,-1006.69093902,0.00060652,15]
[354813946,1740713454840,-1000.0,0.00060752,7]
[354813947,1740713454850,-508.57254085,0.00060852,15]
[354813948,1740713454859,-1000.0,0.00060852,15]
[354813949,1740713454869,-502.58571189,0.00060852,14]
[354813950,1740713454878,-1000.0,0.00060852,14]
[354813951,1740713454888,-1000.0,0.00060852,15]
[354813952,1740713454897,-761.34275791,0.00060852,15]
[354813953,1740713454908,-501.03538421,0.00060852,15]
[354813954,1740713454918,-504.57613299,0.00060852,15]
[354813955,1740713454928,-500.0,0.00060852,7]
[354813956,1740713454939,-1000.0,0.00060852,15]
[354813957,1740713454949,-1000.0,0.00060852,15]
[354813958,1740713454962,-500.0,0.00060852,5]
[354813959,1740713454972,-331.28,0.00061,30]
[354813960,1740713454982,-8547.0,0.00061,120]
[354813961,1740713454991,-2378.54,0.00061,30]
[354813962,1740713455000,-150.0,0.00061,120]
[354813963,1740713455010,-150.0,0.000613,2]
[354813964,1740713455019,-1000.0,0.00061452,10]
[354813965,1740713455029,-1000.0,0.00061452,14]
[354813966,1740713455039,-1001.09861514,0.00061452,14]
[354813967,1740713455048,-1000.0,0.00061452,14]
[354813968,1740713455058,-1051.77102275,0.00061452,15]
[354813969,1740713455067,-1000.0,0.00061452,15]
[354813970,1740713455076,-1000.0,0.00061452,15]
[354813971,1740713455086,-1000.0,0.00061452,15]
[354813972,1740713455096,-500.0,0.00061452,14]
[354813973,1740713455106,-502.25172556,0.00061452,15]
[354813974,1740713455115,-1050.99675962,0.00061452,15]
[354813975,1740713455124,-506.75936098,0.00061452,14]
[354813976,1740713455135,-420.52,0.000616,30]
[354813977,1740713455144,-158.88,0.000617,30]
[354813978,1740713455154,-1929.8,0.000618,30]
[354813979,1740713455163,-2410.30656268,0.00062693,30]
[354813980,1740713455174,-8547.0,0.00063,120]
[354813981,1740713455183,-500.0,0.00063013,120]
[354813982,1740713455192,-200.0,0.00063173,15]
[354813983,1740713455273,-331.28,0.000632,30]
[354813984,1740713455283,-2378.54,0.000632,30]
[354813985,1740713455294,-12038.85143612,0.0006327,120]
[354813986,1740713455303,-12038.85143612,0.0006327,120]
[354813987,1740713455312,-1000.0,0.00063452,15]
[354813988,1740713455322,-501.77247139,0.00063452,15]
[354813989,1740713455331,-1000.0,0.00063452,14]
[354813990,1740713455340,-502.13042356,0.00063452,15]
[354813991,1740713455349,-1000.0,0.00063452,15]
[354813992,1740713455358,-1000.0,0.00063452,15]
[354813993,1740713455368,-420.52,0.00064,30]
[354813994,1740713455377,-22662.51629263,0.00064,120]
[354813995,1740713455386,-104360.6651468,0.00064,120]
[354813996,1740713455396,-158.88,0.000643,30]
[354813997,1740713455405,-1929.8,0.000644,30]
[354813998,1740713455415,-266.244482,0.00064717,120]
[354813999,1740713455424,-503.3306635,0.00064873,14]
[354814000,1740713455433,-2500.0,0.000649,14]
[354814001,1740713455442,-259975.956979,0.000649,2]
[354814002,1740713455451,-8547.0,0.00065,120]
[354814003,1740713455462,-5000.0,0.00065,120]
[354814004,1740713455475,-2378.54,0.000659,30]
[354814005,1740713455483,-100000.0,0.00066,120]
[354814006,1740713455493,-2456.89,0.00066096,120]
[354814007,1740713455502,-331.28,0.000662,30]
[354814008,1740713455511,-8547.0,0.00067,120]
[354814009,1740713455520,-1648.79540579,0.00067051,14]
[354814010,1740713455529,-160.915234,0.00067276,10]
[354814011,1740713455539,-1014.01496976,0.00068493,60]
[354814012,1740713455549,-503.31716805,0.00068493,120]
[354814013,1740713455558,-1341.7409839,0.00068493,120]
[354814014,1740713455567,-1341.7409839,0.00068493,120]
[354814015,1740713455576,-1341.7409839,0.00068493,120]
[354814016,1740713455585,-1341.7409839,0.00068493,120]
[354814017,1740713455595,-1341.7409839,0.00068493,120]
[354814018,1740713455604,-1341.7409839,0.00068493,120]
[354814019,1740713455614,-1341.7409839,0.00068493,120]
[354814020,1740713455624,-1341.7409839,0.00068493,120]
[354814021,1740713455634,-1341.7409839,0.00068493,120]
[354814022,1740713455645,-1341.7409839,0.00068493,120]
[354814023,1740713455655,-1341.7409839,0.00068493,120]
[354814024,1740713455666,-1341.7409839,0.00068493,120]
[354814025,1740713455676,-1341.7409839,0.00068493,120]
[354814026,1740713455686,-1341.7409839,0.00068493,120]
[354814027,1740713455697,-1341.7409839,0.00068493,120]
[354814028,1740713455710,-1341.7409839,0.00068493,120]
[354814029,1740713455720,-1341.7409839,0.00068493,120]
[354814030,1740713455729,-1341.7409839,0.00068493,120]
[354814031,1740713455739,-1341.7409839,0.00068493,120]
[354814032,1740713455748,-1341.7409839,0.00068493,120]
[354814033,1740713455758,-1341.7409839,0.00068493,120]
[354814034,1740713455768,-1341.7409839,0.00068493,120]
[354814035,1740713455777,-1341.7409839,0.00068493,120]
[354814036,1740713455786,-1341.7409839,0.00068493,120]
[354814037,1740713455795,-1341.7409839,0.00068493,120]
[354814038,1740713455804,-1341.7409839,0.00068493,120]
[354814039,1740713455814,-1341.7409839,0.00068493,120]
[354814040,1740713455823,-1341.7409839,0.00068493,120]
[354814041,1740713455832,-1341.7409839,0.00068493,120]
[354814042,1740713455847,-1341.7409839,0.00068493,120]
[354814043,1740713455859,-1341.7409839,0.00068493,120]
[354814044,1740713455869,-1341.7409839,0.00068493,120]
[354814045,1740713455879,-1341.7409839,0.00068493,120]
[354814046,1740713455888,-1341.7409839,0.00068493,120]
[354814047,1740713455897,-1341.7409839,0.00068493,120]
[354814048,1740713455906,-1341.7409839,0.00068493,120]
[354814049,1740713455915,-1341.7409839,0.00068493,120]
[354814050,1740713455924,-1341.7409839,0.00068493,120]
[354814051,1740713455933,-1341.7409839,0.00068493,120]
[354814052,1740713455944,-1341.7409839,0.00068493,120]
[354814053,1740713455956,-1341.7409839,0.00068493,120]
[354814054,1740713455967,-1341.7409839,0.00068493,120]
[354814055,1740713455975,-1341.7409839,0.00068493,120]
[354814056,1740713455984,-1341.7409839,0.00068493,120]
[354814057,1740713455994,-1341.7409839,0.00068493,120]
[354814058,1740713456003,-1341.7409839,0.00068493,120]
[354814059,1740713456012,-1341.7409839,0.00068493,120]
[354814060,1740713456021,-1341.7409839,0.00068493,120]
[354814061,1740713456031,-1341.7409839,0.00068493,120]
[354814062,1740713456041,-1341.7409839,0.00068493,120]
[354814063,1740713456050,-1341.7409839,0.00068493,120]
[354814064,1740713456060,-1341.7409839,0.00068493,120]
[354814065,1740713456071,-1341.7409839,0.00068493,120]
[354814066,1740713456080,-1341.7409839,0.00068493,120]
[354814067,1740713456090,-1341.7409839,0.00068493,120]
[354814068,1740713456099,-1341.7409839,0.00068493,120]
[354814069,1740713456108,-1341.7409839,0.00068493,120]
[354814070,1740713456118,-1341.7409839,0.00068493,120]
[354814071,1740713456128,-1341.7409839,0.00068493,120]
[354814072,1740713456137,-1341.7409839,0.00068493,120]
[354814073,1740713456148,-1341.7409839,0.00068493,120]
[354814074,1740713456159,-1341.7409839,0.00068493,120]
[354814075,1740713456170,-1341.7409839,0.00068493,120]
[354814076,1740713456180,-1341.7409839,0.00068493,120]
[354814077,1740713456189,-1341.7409839,0.00068493,120]
[354814078,1740713456199,-1341.7409839,0.00068493,120]
[354814079,1740713456209,-1341.7409839,0.00068493,120]
[354814080,1740713456219,-1341.7409839,0.00068493,120]
[354814081,1740713456228,-1341.7409839,0.00068493,120]
[354814082,1740713456237,-4054.39036042,0.00068493,120]
[354814083,1740713456247,-4054.39036042,0.00068493,120]
[354814084,1740713456256,-4054.39036042,0.00068493,120]
[354814085,1740713456265,-4054.39036042,0.00068493,120]
[354814086,1740713456274,-4054.39036042,0.00068493,120]
[354814087,1740713456283,-4054.39036042,0.00068493,120]
[354814088,1740713456292,-4054.39036042,0.00068493,120]
[354814089,1740713456301,-4054.39036042,0.00068493,120]
[354814090,1740713456311,-4054.39036042,0.00068493,120]
[354814091,1740713456320,-4054.39036042,0.00068493,120]
[354814092,1740713456329,-4054.39036042,0.00068493,120]
[354814093,1740713456339,-4054.39036042,0.00068493,120]
[354814094,1740713456348,-4054.39036042,0.00068493,120]
[354814095,1740713456359,-4054.39036042,0.00068493,120]
[354814096,1740713456370,-4054.39036042,0.00068493,120]
[354814097,1740713456379,-4054.39036042,0.00068493,120]
[354814098,1740713456388,-4054.39036042,0.00068493,120]
[354814099,1740713456397,-4054.39036042,0.00068493,120]
[354814100,1740713456406,-4054.39036042,0.00068493,120]
[354814101,1740713456415,-4054.39036042,0.00068493,120]
[354814102,1740713456424,-4054.39036042,0.00068493,120]
[354814103,1740713456433,-4054.39036042,0.00068493,120]
[354814104,1740713456442,-4054.39036042,0.00068493,120]
[354814105,1740713456451,-8266.29791108,0.00068493,120]
[354814106,1740713456465,-1000.0,0.00068493,120]
[354814107,1740713456475,-1000.0,0.00068493,2]
[354814108,1740713456484,-3000.0,0.00069,120]
[354814109,1740713456494,-420.52,0.00069,30]
[354814110,1740713456505,-3000.0,0.0006901,120]
[354814111,1740713456514,-3000.0,0.0006902,120]
[354814112,1740713456524,-3000.0,0.0006903,120]
[354814113,1740713456533,-4032.879474,0.0006904,120]
[354814114,1740713456543,-405.6909224,0.0007,120]
[354814115,1740713456554,-2969.9,0.00070756,30]
[354814116,1740713456563,-1000.0,0.00070771,7]
[354814117,1740713456632,-500.0,0.0007083,30]
[354814118,1740713456650,-500.0,0.0007083,14]
[354814119,1740713456660,-200.0,0.0007083,30]
[354814120,1740713456670,-200.0,0.0007083,14]
[354814121,1740713456679,-500.0,0.0007083,120]
[354814122,1740713456689,-4067.0,0.0007083,30]
[354814123,1740713456698,-503.26391205,0.00070871,15]
[354814124,1740713456709,-500.0207089,0.00070871,15]
[354814125,1740713456718,-1500.0,0.00070871,15]
[354814126,1740713456728,-158.88,0.000709,60]
[354814127,1740713456739,-500.0,0.00071218,30]
[354814128,1740713456749,-205.34008841,0.00071219,120]
[354814129,1740713456759,-164.74153029,0.00071219,120]
[354814130,1740713456768,-500.0,0.00071219,120]
[354814131,1740713456778,-500.0,0.00071219,120]
[354814132,1740713456787,-150.53,0.00071219,2]
[354814133,1740713456796,-500.0,0.00071219,120]
[354814134,1740713456805,-500.0,0.00071219,120]
[354814135,1740713456814,-150.53,0.00071219,120]
[354814136,1740713456824,-500.0,0.00071219,120]
[354814137,1740713456834,-150.53,0.00071219,2]
[354814138,1740713456843,-500.0,0.00071219,61]
[354814139,1740713456853,-150.53,0.00071219,120]
[354814140,1740713456862,-500.0,0.00071219,120]
[354814141,1740713456872,-500.0,0.00071219,120]
[354814142,1740713456881,-1084.0,0.00071219,120]
[354814143,1740713456891,-500.0,0.00071219,120]
[354814144,1740713456900,-500.0,0.00071219,120]
[354814145,1740713456909,-500.0,0.00071219,120]
[354814146,1740713456920,-150.53,0.00071219,2]
[354814147,1740713456929,-200.0,0.00071219,7]